Cogmind - Beta 15 @@@ ROGUE MODE // 2025.10.11 @ 17:44:43 Player: beans Result: Destroyed by 8N-ALV(R) with Subdweller Machine Gun Performance ------------- Evolutions (0) 0 Regions Visited (3) 600 Robots Destroyed (8) 40 Value Destroyed (284) 284 Prototype IDs (0) 0 Alien Tech Used (0) 0 Bonus (95) 95 TOTAL SCORE: 1019 Bonus ------- Follower Combat Kills 95 Cogmind --------- Core Integrity 0/250 Matter 271/300 Energy 83/100 System Corruption 0% Temperature Cool (0) Movement Core (150) Ox2 Location -10/Subcaves Parts ------- > --- POWER (1) -------- (None) > --- PROPULSION (2) --- (None) > --- UTILITY (2) ------ Improved Heat Sink Improved Heat Sink > --- WEAPON (2) ------- Subdweller Machine Gun Battle Cannon > --- INVENTORY (5) ---- Subdweller Beam Cannon Grenade Launcher Datajack Mining Laser Peak State ------------ > --- POWER ------------ Light Nuclear Core > --- PROPULSION ------- Carbon-fiber Leg > --- UTILITY ---------- Improved Heat Sink Improved Heat Sink > --- WEAPON ----------- Particle Gun Barrage Gun > --- INVENTORY -------- Light Assault Rifle Subdweller Machine Gun Grenade Launcher Datajack Mining Laser [Rating: 17] Favorites ----------- Power Light Nuclear Core Power Core Light Nuclear Core Propulsion Carbon-fiber Leg Leg Carbon-fiber Leg Utility Improved Heat Sink Device Improved Heat Sink Weapon Assault Rifle Energy Gun Particle Gun Energy Cannon Subdweller Beam Cannon Ballistic Gun Assault Rifle Ballistic Cannon Battle Cannon Build | -11 -10 -10 -10 ------- Run | Yrd Mat Min Sub Slots Evolved . | . . . . Power . | . . . . Propulsion . | . . . . Utility . | . . . . Weapon . | . . . . Parts Attached 12 | 2 . 5 5 Power 1 | . . 1 . Engine . | . . . . Core 1 | . . 1 . Reactor . | . . . . Propulsion 1 | . . 1 . Treads . | . . . . Leg 1 | . . 1 . Wheel . | . . . . Hover . | . . . . Flight . | . . . . Utility 2 | . . 2 . Device 2 | . . 2 . Storage . | . . . . Processor . | . . . . Hackware . | . . . . Protection . | . . . . Artifact . | . . . . Weapon 8 | 2 . 1 5 Energy Gun 2 | . . 1 1 Energy Cannon 1 | . . . 1 Ballistic Gun 4 | 2 . . 2 Ballistic Cannon 1 | . . . 1 Launcher . | . . . . Special Weapon . | . . . . Impact Weapon . | . . . . Slashing Weapon . | . . . . Piercing Weapon . | . . . . Special Melee Weapon . | . . . . Unidentified Prototypes . | . . . . Parts Lost 4 | . . 1 3 Power 1 | . . . 1 Propulsion 1 | . . . 1 Utility . | . . . . Weapon 2 | . . 1 1 Highest Loss Streak 3 | . . 1 3 To Critical Strikes . | . . . . Average Backups 4 | 1 2 4 4 Power . | . . . . Propulsion . | . . . . Utility . | . . . . Weapon 3 | 1 1 3 3 Tool/Special . | . . . . Unused Backups 5 | . . . 5 Power . | . . . . Propulsion . | . . . . Utility . | . . . . Weapon 4 | . . . 4 Tool/Special 1 | . . . 1 Average Slot Usage (%) 75 | . 28 74 81 Core 11 | . . 11 13 Leg 12 | . . 12 13 Device 24 | . . 23 28 Energy Gun 11 | . . 11 13 Energy Cannon 4 | . . . 10 Ballistic Gun 9 | . 28 15 . Peak Build Rating 17 | 2 2 15 17 Average Rating 13 | . 2 12 15 On Entrance 4 | . 2 2 14 Naked Turns . | . . . . Heaviest Build 19 | 3 3 12 19 Greatest Support 15 | 3 3 15 15 Greatest Overweight (x) 4 | . . . 4 Average Overweight (x) . | . . . . Largest Inventory Capacity 5 | 5 5 5 5 Average Capacity 5 | 5 5 5 5 Most Carried 5 | 3 3 5 5 Average Carried 4 | 1 2 4 4 Final Capacity 5 | 5 5 5 5 Final Carried 5 | 1 3 5 4 Class Distribution -------------------- 85% | Scavenger-Mutant 14% | Mutant Dominant Class ---------------- Mutant | -10/Materials Scavenger-Mutant | -10/Mines Scavenger-Mutant | -10/Subcaves Resources | -11 -10 -10 -10 ----------- Run | Yrd Mat Min Sub Matter Collected 391 | 144 48 155 44 Remotely . | . . . . Salvage Created 407 | . 48 178 181 Parts 24 | . 4 10 10 Haulers Intercepted 1 | . 1 . . Recyclers Shooed . | . . . . Parts Field Recycled . | . . . . Retrieved Matter . | . . . . Parts Self-Destructed . | . . . . Prevented . | . . . . Kills | -11 -10 -10 -10 ------- Run | Yrd Mat Min Sub Combat Hostiles Destroyed 7 | . . 4 3 Guns 4 | . . 4 . Cannons 3 | . . . 3 Classes Destroyed 4 | . 1 1 2 Hauler 1 | . 1 . . Grunt 4 | . . 4 . Cobbler 1 | . . . 1 Subdweller 3 | . . . 3 Best Kill Streak 2 | . 1 2 2 Combat Bots Only 2 | . . 2 2 Max Kills in Single Turn 1 | . 1 1 1 Gunslinging . | . . . . Exploded . | . . . . Melee . | . . . . Uniques/NPCs Destroyed . | . . . . Combat | -11 -10 -10 -10 -------- Run | Yrd Mat Min Sub Hostile Shots Fired 50 | . . 22 28 Missed 15 | . . 8 7 Hits 35 | . . 14 21 Projectile 35 | . . 14 21 Damage Taken 699 | . . 213 486 Core 263 | . . 43 220 Absorbed by Shields . | . . . . Core Remaining (%) 100 | 100 . . . Volleys Fired 53 | . 4 28 21 Largest 2 | . 2 2 2 Hottest 140 | . 40 85 140 Shots Fired 94 | . 8 48 38 Gun 75 | . 8 48 19 Cannon 19 | . . . 19 Launcher . | . . . . Special . | . . . . Kinetic 40 | . 8 26 6 Thermal 54 | . . 22 32 Explosive . | . . . . Electromagnetic . | . . . . Robot Hit Streak 15 | . 6 5 15 Robot Miss Streak 5 | . 1 5 2 Penetration Max . | . . . . Secondary Targets . | . . . . Shots Hit Robots 58 | . 6 24 28 Core Hits 20 | . 2 11 7 Critical Kills . | . . . . Critical Parts Destroyed 1 | . . 1 . Critical Strikes 4 | . . 3 1 Burn 2 | . . 2 . Destroy 2 | . . 1 1 Melee Attacks . | . . . . Impact . | . . . . Slashing . | . . . . Piercing . | . . . . Sneak Attacks . | . . . . Combat Hostiles . | . . . . Follow-up Attacks . | . . . . Damage Inflicted 1040 | . 60 324 656 Guns 635 | . 60 324 251 Cannons 405 | . . . 405 Explosions . | . . . . Melee . | . . . . Ramming . | . . . . Kinetic 297 | . 60 140 97 Thermal 743 | . . 184 559 Explosive . | . . . . Electromagnetic . | . . . . Impact . | . . . . Slashing . | . . . . Piercing . | . . . . Highest Corruption . | . . . . Average Corruption . | . . . . Corruption Purged . | . . . . Corruption Blocked . | . . . . Overload Shots . | . . . . Overflow Damage 8 | . . . 8 Projectiles 8 | . . . 8 Explosions . | . . . . Melee . | . . . . Knockbacks 1 | . . . 1 Impact . | . . . . Kinetic 1 | . . . 1 Secondary . | . . . . Self-Inflicted Damage . | . . . . Shots . | . . . . Rammed . | . . . . Targets Rammed . | . . . . Kicked . | . . . . Crushed . | . . . . Highest Temperature . | . . . . Average Temperature . | . . . . Received Heat Transfer 138 | . . 114 24 Siege Activations . | . . . . Martial Activations . | . . . . Shielding Activations . | . . . . Robots Disrupted . | . . . . Combat Hostiles . | . . . . Robots Corrupted . | . . . . Combat Hostiles . | . . . . Parts Fried . | . . . . Impact Corruptions . | . . . . Robots Melted . | . . . . Combat Hostiles . | . . . . Parts Melted 3 | . . . 3 Heat Transferred 1347 | . . 592 755 Parts Sabotaged . | . . . . Parts Stolen . | . . . . Parts Stripped . | . . . . Power Chain Reactions . | . . . . Alert | -11 -10 -10 -10 ------- Run | Yrd Mat Min Sub Maximum Alert Level . | . . . . Low Security (%) 100 | 100 100 100 . Level 1 . | . . . . Level 2 . | . . . . Level 3 . | . . . . Level 4 . | . . . . Level 5 . | . . . . High Security . | . . . . Max Security . | . . . . Peak Influence 53 | . 7 53 . Initial . | . . . . Average 5 | . . 6 . Influence Increases 150 | . 7 143 . Destroy 0b10 Robot/C 100 | . . 100 . Destroy 0b10 Robot/NC 5 | . 5 . . Destroy Leader 32 | . 2 30 . Allied During Kill 13 | . . 13 . Influence Decreases 150 | . 7 127 16 Entered New Map 9 | . . . 9 Time Decay 131 | . 7 117 7 Lost Part 10 | . . 10 . Squads Dispatched . | . . . . Investigation . | . . . . Extermination . | . . . . Reinforcement . | . . . . Assault . | . . . . Garrison . | . . . . Intercept . | . . . . Searches Triggered . | . . . . Construction Impeded . | . . . . Haulers Reinforced . | . . . . Active Scanning Responses . | . . . . Cargo Convoy Interrupts . | . . . . Stealth | -11 -10 -10 -10 --------- Run | Yrd Mat Min Sub Distress Signals . | . . . . Communications Jammed . | . . . . Distress Signals . | . . . . Times Spotted 11 | . . 5 6 Peak Tracking Total 2 | . . 2 2 Tactical Retreats . | . . . . Traps | -11 -10 -10 -10 ------- Run | Yrd Mat Min Sub Traps Triggered . | . . . . Indirectly . | . . . . Trap Hack Attempts . | . . . . Triggered . | . . . . Disarmed . | . . . . Reprogrammed . | . . . . Reused . | . . . . Traps Extracted . | . . . . Installed . | . . . . Triggered . | . . . . Machines | -11 -10 -10 -10 ---------- Run | Yrd Mat Min Sub Machines Disabled . | . . . . Max in Single Turn . | . . . . Machines Repaired . | . . . . Machines Dismantled . | . . . . Machines Sabotaged . | . . . . Overloaded Fab Kills . | . . . . Hacking | -11 -10 -10 -10 --------- Run | Yrd Mat Min Sub Machines Accessed . | . . . . Terminals . | . . . . Fabricators . | . . . . Repair Stations . | . . . . Recycling Units . | . . . . Scanalyzers . | . . . . Garrison Access . | . . . . Total Hacks . | . . . . Successful . | . . . . Failed . | . . . . Catastrophic . | . . . . Database Lockouts . | . . . . Manual . | . . . . Terminals . | . . . . Fabricators . | . . . . Repair Stations . | . . . . Recycling Units . | . . . . Scanalyzers . | . . . . Garrison Access . | . . . . Terminal Hacks . | . . . . Fabricator Hacks . | . . . . Repair Station Hacks . | . . . . Recycling Unit Hacks . | . . . . Scanalyzer . | . . . . Garrison Access Hacks . | . . . . Unauthorized Hacks . | . . . . Terminals . | . . . . Fabricators . | . . . . Repair Stations . | . . . . Recycling Units . | . . . . Scanalyzers . | . . . . Garrison Access . | . . . . Data Cores Recovered . | . . . . Used . | . . . . Hacking Detections . | . . . . Full Trace Events . | . . . . Feedback Events . | . . . . Feedback Blocked . | . . . . Robot Schematics Acquired . | . . . . Robots Built . | . . . . Authchips . | . . . . Time . | . . . . Total Robot Build Rating . | . . . . Part Schematics Acquired . | . . . . Parts Built . | . . . . Authchips . | . . . . Time . | . . . . Total Part Build Rating . | . . . . Parts Repaired . | . . . . Time . | . . . . Parts Recycled . | . . . . Recycled Matter . | . . . . Retrieved Matter . | . . . . Retrieved Components . | . . . . Parts Scanalyzed . | . . . . Part Schematics Acquired . | . . . . Parts Damaged . | . . . . Bothacking | -11 -10 -10 -10 ------------ Run | Yrd Mat Min Sub Used RIF Installer . | . . . . Robots Hacked . | . . . . Non-combat . | . . . . Combat . | . . . . Robot Hacks Applied . | . . . . Relay Couplers Released . | . . . . Fabnet Peak Effective % . | . . . . Robots Rewired . | . . . . Allies Hacked . | . . . . Hacks Repelled . | . . . . Allies | -11 -10 -10 -10 -------- Run | Yrd Mat Min Sub Total Allies 4 | . . 4 . Largest Group 3 | . . 3 3 Highest-Rated Group 40 | . . 40 40 Highest-Rated Ally 31 | . . 31 16 Total Orders . | . . . . Ally Attacks 14 | . . 7 7 Total Damage 173 | . . 107 66 Kills 3 | . . 1 2 Allies Corrupted . | . . . . Allies Melted . | . . . . Intel | -11 -10 -10 -10 ------- Run | Yrd Mat Min Sub Active Infowar (turns) . | . . . . Robot Analysis Total . | . . . . Derelict Logs Recovered 2 | . . 2 . Drone Launches . | . . . . Drone Recoveries . | . . . . Exploration | -11 -10 -10 -10 ------------- Run | Yrd Mat Min Sub Turns Passed 1557 | 23 69 787 678 Spaces Moved 1008 | 37 93 519 359 Core 282 | 37 93 151 1 Treads . | . . . . Legs 726 | . . 368 358 Wheels . | . . . . Hover . | . . . . Flight . | . . . . Fastest Speed 50 | 50 50 50 120 Average Speed 116 | 50 50 99 163 Slowest Speed 250 | 50 50 120 250 Overloaded Moves . | . . . . Propulsion Burnouts . | . . . . Robots Hopped . | . . . . Potential Cave-ins . | . . . . Cave-ins Triggered . | . . . . Exploration Rate (%) 36 | 3 25 88 30 Regions Visited 3 Branch Regions 2 Pre-discovered Areas 2 | . . 2 . Known Exits Taken . | . . . . Unknown Exits Taken 3 | 1 1 1 . Scrap Searched 12 | . . 1 11 Spaces Dug 1 | . . . 1 Terrain Destroyed 1 | . . . 1 Melee . | . . . . Projectile 1 | . . . 1 AOE . | . . . . Terrain Rammed . | . . . . Walls Destroyed . | . . . . Machines Disabled . | . . . . Actions | -11 -10 -10 -10 --------- Run | Yrd Mat Min Sub Total 1299 | 41 107 740 411 Wait 214 | . 9 186 19 Move 1005 | 36 92 518 359 Hop . | . . . . Pick Up 9 | 3 2 2 2 Fast Attach 8 | . . 5 3 Attach 3 | 2 . . 1 Detach . | . . . . Swap 2 | . . . 2 Drop 5 | . . 1 4 Fire 53 | . 4 28 21 Melee . | . . . . Ram . | . . . . Kick . | . . . . Crush . | . . . . Escape Stasis . | . . . . Rewire . | . . . . Trap . | . . . . Miscellaneous . | . . . . Route ------- -11/Scrapyard -10/Materials -10/Mines (discovered 3 exits: [*Mat x2] / [*Sub]) -10/Subcaves (discovered 2 exits: [*Mat x2]) History --------- Turn | Location | Event 4 | -11/Scrapyard | Discovered new exit (range 15) 24 | -11/Scrapyard | Entered Materials 82 | -10/Materials | Discovered new exit (range 16) 93 | -10/Materials | Entered Mines 104 | -10/Mines | Met a Derelict bent on vengeance 163 | -10/Mines | Received a Mining Laser from a helpful Derelict 170 | -10/Mines | Discovered new exit (range 6) 183 | -10/Mines | Learned location of Storage (-7) 419 | -10/Mines | Learned location of Mines (-9) 439 | -10/Mines | Assisted by bots powering up and referring to "LRC-V3" 529 | -10/Mines | Build established: Scavenger-Mutant 775 | -10/Mines | Discovered new exit (range 7) 854 | -10/Mines | Discovered new exit (range 10) 880 | -10/Mines | Entered Subcaves 880 | -10/Subcaves | Accompanied by 3 allies 1004 | -10/Subcaves | Disturbed a concealed Subdweller 1300 | -10/Subcaves | Core integrity fell below 50% 1417 | -10/Subcaves | Discovered new exit (range 7) 1507 | -10/Subcaves | Discovered new exit (range 9) 1543 | -10/Subcaves | Core integrity fell below 20% 1558 | -10/Subcaves | Destroyed by 8N-ALV(R) with Subdweller Machine Gun Last Messages --------------- M5-JIO(R) destroyed. A0-NDB(O) collects matter. GE-JJX(u) tweaks Twisted Machinery. 2B-S1H(R) heat spikes uncontrollably. Sub. Optics melted. Sub. Monowheel melted. Disposable Heat Sink melted. 2B-S1H(R) destroyed. A0-NDB(O) collects matter. Destroyed Wheel. 23-YZL(R) destroyed. A0-NDB(O) puts together Shrapnel Trap. A0-NDB(O) cries out in pain. A0-NDB(O) destroyed. EXIT=FOUND Sub. Laser destroyed. Lgt. Nuclear Core destroyed. Carbon-fiber Leg destroyed. JH-OXH(R) knocked back. JH-OXH(R) suffers critical hit (Destroy). Map ----- +----------------------------------------------------+ | ???????????????##???# ##????# #??# | | ??????????????## #### #????## #### | | ??????????????# ####?## ## | | ??????????????# ### % | | ???????????????# ## | | ????????????????# ## ##??? | | ????????????????## % ### % ###???? | | ?????????????????## ### #?????? | | ??????????????????## ## ##?????? | | ????????????????##### ##% #??????? | | ???????????????## # # ## ##?????? | | ??????????????## ## ##????? | | ??????????????# ##### #????? | | ??????????????## # ####???## #????? | | ??????????????## ## #?????### #????? | | ??????????????# ### #?#### ##????? | | ??????????????# #### #?# ###?????? | | ??????????????## ### ##?## #???????? | | ??????????????# ####???### ##???????? | | ??????????????# < #???????## #???????? | | ??????????????# #???????# #?????? | | ??????????????# ##??????## ##????? | | ??????????????# #??????# #?##? | | ??????????????# ##??????## ## ## | | ??????????????## ##?## ####" " " " | | ???????????????# #@ #??# " [ " " #? | | ???????????????####RR#?## " ## #? | | ?????????????????? #??# # ## ## ##???? | | ?????????????????? %#??# #### # ##???## | | ?????????????????# ### < ### # | | ?????????????????# # ### # # | | ????????????????? ????### # # | | ????????????????? ????????# "##"" # | | ????????????????? ???????#### ##?##% | | ????????????????# #??????## "###??? | | ????????????????# #####????# " ####? | | ????????????????# ### ##???##### """"" ## | | ????????????????#### #####???### [ # | | ?????????????????## ## #?????## & # | | ?????????????????# ######## &= # | | ???????????????####### &# ] [ *# | | ??????????????##!%"## %[ !" | | ??????????????#"[#&#" ## * | | ??????????????#%[# &= ### # # | | ??????????????#*"# #%& ## ## ## ## | | ??????????????#%####&& ### ## #####? | | ??????????????#### ## ## #????? | | ??????????????#### [## ## #???? | | ??????????????# ##### ## #???? | | ??????????????# #???##### #???? | +----------------------------------------------------+ Best States ------------- Heat Dissipation 53 Energy Generation 14 Energy Capacity 160 Matter Stores 300 Matter Capacity 300 Sight Range 16 Terrain Scan Density 10 Evasion (%) 55 Item Schematics ----------------- None Robot Schematics ------------------ None Fabricated ------------ Nothing Repaired ---------- Nothing Alien Tech Used ----------------- None Achievements -------------- None Challenges ------------ None Game ------ Seed ResetHardcellBotcube Manual? 0 Play Time 00:09:36 Cumulative 182.3 hours Start 2025.10.11 @ 17:38:06 End 2025.10.11 @ 17:44:43 Sessions 1 Manual Loads 0 Difficulty Rogue Special Mode None Game No. 552 Rogue 551 Adventurer 1 Explorer 0 Win Type - Total 0 Types 0/0/0/0/0/0/0/0/0/0 Lore% 61 Gallery% 59 Achievement% 46 Wizard Run 0 Options --------- Layout 1 ASCII 0 Keyboard 0 Movement Mouse Keybinds 0 Fullscreen 1 Font 24/Smallcaps Map View 50x35 Zoom Use 0% Tactical HUD 0 Map Filters NONE Filters NONE Steam 1 RUN: 7820b970-7bab-4c84-a3c4-320486b5d389